[Event "*** SCC Grand Prix: Titled Tuesday Blitz"]
[Site "Chess.com"]
[Date "2020.07.07"]
[Round "2"]
[White "EnergeticHay"]
[Black "guillembaches"]
[Result "1-0"]
[WhiteElo "2244"]
[BlackElo "2433"]
[TimeControl "180+1"]
[EndTime "10:18:08 PDT"]
[Termination "EnergeticHay won by resignation"]

1. e4 {[%clk 0:03:00.9]} 1... c5 {[%clk 0:02:59.5]} 2. Nf3 {[%clk 0:03:01.3]}
2... d6 {[%clk 0:02:59]} 3. d4 {[%clk 0:03:01.7]} 3... cxd4 {[%clk 0:02:59.2]}
4. Nxd4 {[%clk 0:03:02.6]} 4... Nf6 {[%clk 0:02:59.2]} 5. Nc3 {[%clk 0:03:03.1]}
5... a6 {[%clk 0:02:58.9]} 6. h3 {[%clk 0:03:03.1]} 6... e5 {[%clk 0:02:58]} 7.
Nde2 {[%clk 0:03:03.1]} 7... h5 {[%clk 0:02:58.1]} 8. g3 {[%clk 0:03:03.2]} 8...
Be6 {[%clk 0:02:58.1]} 9. Bg2 {[%clk 0:03:02.8]} 9... Be7 {[%clk 0:02:57.6]} 10.
O-O {[%clk 0:03:02.1]} 10... Nbd7 {[%clk 0:02:50.7]} 11. a4 {[%clk 0:03:01.7]}
11... Nf8 {[%clk 0:02:50]} 12. Be3 {[%clk 0:02:57.7]} 12... Qd7 {[%clk
0:02:46.3]} 13. Kh2 {[%clk 0:02:54.9]} 13... h4 {[%clk 0:02:44]} 14. g4 {[%clk
0:02:54]} 14... Ng6 {[%clk 0:02:32.2]} 15. Qd2 {[%clk 0:02:53]} 15... Bxg4
{[%clk 0:02:25.5]} 16. hxg4 {[%clk 0:02:52.4]} 16... Nxg4+ {[%clk 0:02:25.5]}
17. Kg1 {[%clk 0:02:50.9]} 17... h3 {[%clk 0:02:19.7]} 18. Bf3 {[%clk
0:02:43.5]} 18... Nh4 {[%clk 0:02:15.1]} 19. Kh1 {[%clk 0:01:55.4]} 19... Nxf3
{[%clk 0:02:11.4]} 20. Qd3 {[%clk 0:01:55.7]} 20... Bg5 {[%clk 0:01:39.9]} 21.
Bxg5 {[%clk 0:01:45.5]} 21... Nxg5 {[%clk 0:01:39.2]} 22. Nd5 {[%clk 0:01:45.4]}
22... Rd8 {[%clk 0:01:26]} 23. Ng3 {[%clk 0:01:25.4]} 23... Ne6 {[%clk
0:01:18.3]} 24. Nf5 {[%clk 0:00:55.3]} 24... g6 {[%clk 0:01:08.9]} 25. f3 {[%clk
0:00:54.7]} 25... gxf5 {[%clk 0:00:54.6]} 26. fxg4 {[%clk 0:00:54.3]} 26... fxe4
{[%clk 0:00:54.3]} 27. Qxe4 {[%clk 0:00:52.7]} 27... Qc6 {[%clk 0:00:48.9]} 28.
c4 {[%clk 0:00:52.5]} 28... b5 {[%clk 0:00:44.4]} 29. axb5 {[%clk 0:00:52.1]}
29... axb5 {[%clk 0:00:43.6]} 30. Qf3 {[%clk 0:00:38.5]} 30... Nf4 {[%clk
0:00:11.3]} 31. Nf6+ {[%clk 0:00:32]} 1-0

[Event "*** SCC Grand Prix: Titled Tuesday Blitz"]
[Site "Chess.com"]
[Date "2020.07.07"]
[Round "2"]
[White "Twitch_ElhamBlitz05"]
[Black "vangulio"]
[Result "1-0"]
[WhiteElo "2820"]
[BlackElo "2530"]
[TimeControl "180+1"]
[EndTime "10:18:09 PDT"]
[Termination "Twitch_ElhamBlitz05 won on time"]

1. e4 {[%clk 0:03:00.9]} 1... c5 {[%clk 0:02:58.2]} 2. Nf3 {[%clk 0:03:00.7]}
2... d6 {[%clk 0:02:58.6]} 3. d4 {[%clk 0:03:00.3]} 3... cxd4 {[%clk 0:02:59.5]}
4. Nxd4 {[%clk 0:03:01.2]} 4... Nf6 {[%clk 0:02:59.9]} 5. f3 {[%clk 0:03:01.8]}
5... g6 {[%clk 0:03:00.5]} 6. c4 {[%clk 0:03:01.7]} 6... Bg7 {[%clk 0:03:01]} 7.
Nc3 {[%clk 0:03:02]} 7... O-O {[%clk 0:03:01.6]} 8. Be3 {[%clk 0:03:02.6]} 8...
Nc6 {[%clk 0:03:02.1]} 9. Qd2 {[%clk 0:03:03]} 9... Bd7 {[%clk 0:03:02.2]} 10.
Be2 {[%clk 0:03:03.6]} 10... Nxd4 {[%clk 0:03:02.5]} 11. Bxd4 {[%clk 0:03:04.5]}
11... Bc6 {[%clk 0:03:03.1]} 12. O-O {[%clk 0:03:04.9]} 12... a5 {[%clk
0:03:03.6]} 13. Rac1 {[%clk 0:03:05]} 13... Nd7 {[%clk 0:03:03.6]} 14. Rfd1
{[%clk 0:03:05.3]} 14... Nc5 {[%clk 0:03:03]} 15. Bxg7 {[%clk 0:03:02.4]} 15...
Kxg7 {[%clk 0:03:03.3]} 16. Qe3 {[%clk 0:03:01.8]} 16... Qb6 {[%clk 0:03:00.6]}
17. b3 {[%clk 0:03:00.4]} 17... Rfc8 {[%clk 0:02:57]} 18. Bf1 {[%clk 0:02:59.5]}
18... Qb4 {[%clk 0:02:55.5]} 19. Nd5 {[%clk 0:02:57.4]} 19... Bxd5 {[%clk
0:02:55.2]} 20. exd5 {[%clk 0:02:58.3]} 20... Re8 {[%clk 0:02:49.2]} 21. h4
{[%clk 0:02:51.3]} 21... a4 {[%clk 0:02:47.1]} 22. Rb1 {[%clk 0:02:51.4]} 22...
axb3 {[%clk 0:02:46.7]} 23. axb3 {[%clk 0:02:52.3]} 23... Ra3 {[%clk 0:02:46.6]}
24. h5 {[%clk 0:02:46.1]} 24... Rxb3 {[%clk 0:02:46.5]} 25. h6+ {[%clk
0:02:46.4]} 25... Kg8 {[%clk 0:02:40]} 26. Qd4 {[%clk 0:02:45.5]} 26... f6
{[%clk 0:02:38.5]} 27. Rxb3 {[%clk 0:02:38]} 27... Qxb3 {[%clk 0:02:12.5]} 28.
Ra1 {[%clk 0:02:37.2]} 28... Qb6 {[%clk 0:01:59.7]} 29. Qe3 {[%clk 0:02:26.7]}
29... Kf7 {[%clk 0:01:43]} 30. Kh1 {[%clk 0:02:20.5]} 30... e6 {[%clk
0:01:34.8]} 31. dxe6+ {[%clk 0:02:04.8]} 31... Rxe6 {[%clk 0:01:34.2]} 32. Qf4
{[%clk 0:02:05.3]} 32... Re5 {[%clk 0:01:29.8]} 33. g4 {[%clk 0:01:51.3]} 33...
Ne6 {[%clk 0:01:26.9]} 34. Qd2 {[%clk 0:01:47.4]} 34... Qd4 {[%clk 0:01:11.7]}
35. Qxd4 {[%clk 0:01:39.5]} 35... Nxd4 {[%clk 0:01:12.6]} 36. Ra7 {[%clk
0:01:39.5]} 36... Nxf3 {[%clk 0:00:58.5]} 37. Rxb7+ {[%clk 0:01:38.9]} 37... Re7
{[%clk 0:00:58.9]} 38. Rb6 {[%clk 0:01:32.8]} 38... Rd7 {[%clk 0:00:38.2]} 39.
Bg2 {[%clk 0:01:25.6]} 39... Ne5 {[%clk 0:00:37.2]} 40. Bd5+ {[%clk 0:01:26.1]}
40... Ke7 {[%clk 0:00:37.2]} 41. Rb8 {[%clk 0:01:26.3]} 41... Nxg4 {[%clk
0:00:34]} 42. Rh8 {[%clk 0:01:26.3]} 42... Nxh6 {[%clk 0:00:05.5]} 43. Rxh7+
{[%clk 0:01:27.2]} 43... Kd8 {[%clk 0:00:03.1]} 44. Rxh6 {[%clk 0:01:27.5]}
44... Rg7 {[%clk 0:00:03.7]} 45. Kg2 {[%clk 0:01:25.7]} 45... Ke7 {[%clk
0:00:04.2]} 46. Rh8 {[%clk 0:01:25.7]} 46... f5 {[%clk 0:00:05.1]} 47. Rc8
{[%clk 0:01:23.6]} 47... Kf6 {[%clk 0:00:06]} 48. Re8 {[%clk 0:01:23.7]} 48...
Kg5 {[%clk 0:00:05.5]} 49. Re6 {[%clk 0:01:23.5]} 49... Rd7 {[%clk 0:00:04.7]}
50. Kf3 {[%clk 0:01:23.9]} 50... Kh5 {[%clk 0:00:04.7]} 51. Kf4 {[%clk
0:01:23.8]} 51... Rd8 {[%clk 0:00:05.3]} 52. Re7 {[%clk 0:01:23.1]} 52... Kh6
{[%clk 0:00:05.2]} 53. Re6 {[%clk 0:01:21.2]} 53... Kh5 {[%clk 0:00:04.6]} 54.
Bc6 {[%clk 0:01:16.6]} 54... Kh6 {[%clk 0:00:02.8]} 55. Be8 {[%clk 0:01:17.1]}
1-0

[Event "*** SCC Grand Prix: Titled Tuesday Blitz"]
[Site "Chess.com"]
[Date "2020.07.07"]
[Round "2"]
[White "natelleka"]
[Black "AndrewMaco"]
[Result "0-1"]
[WhiteElo "2114"]
[BlackElo "2620"]
[TimeControl "180+1"]
[EndTime "10:18:09 PDT"]
[Termination "AndrewMaco won on time"]

1. e4 {[%clk 0:03:00.8]} 1... c6 {[%clk 0:02:52.7]} 2. d4 {[%clk 0:03:00.7]}
2... d5 {[%clk 0:02:47.1]} 3. f3 {[%clk 0:02:53.3]} 3... e6 {[%clk 0:02:25.1]}
4. Nc3 {[%clk 0:02:42.7]} 4... Bb4 {[%clk 0:02:24.7]} 5. Qd3 {[%clk 0:02:37.4]}
5... Ne7 {[%clk 0:02:22.3]} 6. Bd2 {[%clk 0:02:30.8]} 6... b6 {[%clk 0:02:20.9]}
7. O-O-O {[%clk 0:02:24]} 7... O-O {[%clk 0:02:20.1]} 8. e5 {[%clk 0:02:20]}
8... Ba6 {[%clk 0:02:18.2]} 9. Qe3 {[%clk 0:02:19.3]} 9... Bxf1 {[%clk
0:02:18.1]} 10. Rxf1 {[%clk 0:02:19.3]} 10... c5 {[%clk 0:02:18.7]} 11. Nge2
{[%clk 0:02:16.7]} 11... Nbc6 {[%clk 0:02:17.2]} 12. g4 {[%clk 0:01:38.1]} 12...
Rc8 {[%clk 0:02:06.3]} 13. a3 {[%clk 0:01:36.6]} 13... cxd4 {[%clk 0:02:00.3]}
14. Nxd4 {[%clk 0:01:35.9]} 14... Bc5 {[%clk 0:01:59.8]} 15. Nce2 {[%clk
0:01:30.4]} 15... b5 {[%clk 0:01:53.3]} 16. f4 {[%clk 0:01:13.7]} 16... Qb6
{[%clk 0:01:41.1]} 17. Bc3 {[%clk 0:01:03.6]} 17... a5 {[%clk 0:01:23.8]} 18.
Rd1 {[%clk 0:00:33.8]} 18... b4 {[%clk 0:01:23.2]} 19. axb4 {[%clk 0:00:31.4]}
19... axb4 {[%clk 0:01:23.6]} 20. Be1 {[%clk 0:00:31.6]} 20... Ra8 {[%clk
0:01:13.6]} 21. c3 {[%clk 0:00:22.6]} 21... bxc3 {[%clk 0:01:05.1]} 22. Bxc3
{[%clk 0:00:20.1]} 22... Rfc8 {[%clk 0:01:03]} 23. f5 {[%clk 0:00:15.2]} 23...
exf5 {[%clk 0:00:59.3]} 24. Rhe1 {[%clk 0:00:09]} 24... fxg4 {[%clk 0:00:57.6]}
25. e6 {[%clk 0:00:08.7]} 25... f6 {[%clk 0:00:56.4]} 26. Qf4 {[%clk 0:00:07.4]}
26... Ne5 {[%clk 0:00:41.3]} 27. Nf5 {[%clk 0:00:05.8]} 27... Nxf5 {[%clk
0:00:39.6]} 28. Qxf5 {[%clk 0:00:05.6]} 28... Be3+ {[%clk 0:00:35.6]} 29. Kc2
{[%clk 0:00:05.8]} 29... d4 {[%clk 0:00:36]} 30. Nxd4 {[%clk 0:00:03.9]} 30...
Bxd4 {[%clk 0:00:36.3]} 31. Rxd4 {[%clk 0:00:01.8]} 31... Qxd4 {[%clk
0:00:36.2]} 0-1

[Event "*** SCC Grand Prix: Titled Tuesday Blitz"]
[Site "Chess.com"]
[Date "2020.07.07"]
[Round "2"]
[White "secretsuperstar7"]
[Black "angryhorse9"]
[Result "0-1"]
[WhiteElo "2116"]
[BlackElo "2406"]
[TimeControl "180+1"]
[EndTime "10:18:10 PDT"]
[Termination "angryhorse9 won on time"]

1. d4 {[%clk 0:03:00.9]} 1... Nf6 {[%clk 0:03:00.4]} 2. c4 {[%clk 0:03:00.5]}
2... g6 {[%clk 0:03:01]} 3. Nc3 {[%clk 0:02:59.7]} 3... Bg7 {[%clk 0:03:01.5]}
4. e4 {[%clk 0:02:59.8]} 4... d6 {[%clk 0:03:02.1]} 5. Nf3 {[%clk 0:02:58.4]}
5... O-O {[%clk 0:03:02.5]} 6. Be2 {[%clk 0:02:57.6]} 6... e5 {[%clk 0:03:03]}
7. d5 {[%clk 0:02:54.5]} 7... a5 {[%clk 0:03:02.1]} 8. h3 {[%clk 0:02:53.2]}
8... Na6 {[%clk 0:03:02.5]} 9. Bg5 {[%clk 0:02:52.8]} 9... h6 {[%clk 0:03:02.1]}
10. Be3 {[%clk 0:02:50.7]} 10... Qe8 {[%clk 0:02:59.8]} 11. Nd2 {[%clk
0:02:29.7]} 11... Bd7 {[%clk 0:02:57.1]} 12. Qc2 {[%clk 0:02:18.4]} 12... Nh7
{[%clk 0:02:56.9]} 13. g4 {[%clk 0:02:12.5]} 13... Kh8 {[%clk 0:02:46.7]} 14. a3
{[%clk 0:01:46.5]} 14... a4 {[%clk 0:02:44.7]} 15. h4 {[%clk 0:01:37.5]} 15...
f5 {[%clk 0:02:42.6]} 16. gxf5 {[%clk 0:01:31.7]} 16... gxf5 {[%clk 0:02:42]}
17. exf5 {[%clk 0:01:31.9]} 17... Nc5 {[%clk 0:02:41.9]} 18. Bg4 {[%clk
0:01:17.6]} 18... Nf6 {[%clk 0:02:28.2]} 19. Bh3 {[%clk 0:01:17]} 19... e4
{[%clk 0:02:24.4]} 20. Bxc5 {[%clk 0:01:04.7]} 20... dxc5 {[%clk 0:02:22.7]} 21.
O-O-O {[%clk 0:01:03.9]} 21... Qe5 {[%clk 0:01:58.5]} 22. Rde1 {[%clk
0:00:48.8]} 22... Bxf5 {[%clk 0:01:57.5]} 23. Bxf5 {[%clk 0:00:41]} 23... Qxf5
{[%clk 0:01:56.9]} 24. Ncxe4 {[%clk 0:00:37]} 24... Nxe4 {[%clk 0:01:56]} 25.
Nxe4 {[%clk 0:00:30.4]} 25... b6 {[%clk 0:01:42.7]} 26. Re2 {[%clk 0:00:19.7]}
26... Bd4 {[%clk 0:01:34.9]} 27. Rhe1 {[%clk 0:00:18.7]} 27... Qf3 {[%clk
0:01:35]} 28. Qd2 {[%clk 0:00:16.7]} 28... Kh7 {[%clk 0:01:30.6]} 29. Ng5+
{[%clk 0:00:12.1]} 29... hxg5 {[%clk 0:01:29.3]} 30. Re7+ {[%clk 0:00:11.1]}
30... Kh8 {[%clk 0:01:25.2]} 31. hxg5 {[%clk 0:00:06.3]} 31... Qf4 {[%clk
0:01:21.4]} 32. R1e3 {[%clk 0:00:04.2]} 32... Bxe3 {[%clk 0:01:04.9]} 33. Rxe3
{[%clk 0:00:04]} 33... Qxf2 {[%clk 0:00:54.9]} 34. Qc3+ {[%clk 0:00:02.3]} 34...
Kg8 {[%clk 0:00:54.7]} 35. Kb1 {[%clk 0:00:01.4]} 35... Qf1+ {[%clk 0:00:51]}
0-1

[Event "*** SCC Grand Prix: Titled Tuesday Blitz"]
[Site "Chess.com"]
[Date "2020.07.07"]
[Round "2"]
[White "Chessdemon2019"]
[Black "amiralfio"]
[Result "1-0"]
[WhiteElo "2293"]
[BlackElo "2450"]
[TimeControl "180+1"]
[EndTime "10:18:11 PDT"]
[Termination "Chessdemon2019 won by checkmate"]

1. e4 {[%clk 0:03:00.9]} 1... c5 {[%clk 0:00:14]} 2. Nf3 {[%clk 0:02:33.9]} 2...
e6 {[%clk 0:00:12.2]} 3. d4 {[%clk 0:02:32.5]} 3... cxd4 {[%clk 0:00:13.1]} 4.
Nxd4 {[%clk 0:02:32.8]} 4... Nf6 {[%clk 0:00:13.8]} 5. Nc3 {[%clk 0:02:31.6]}
5... Nc6 {[%clk 0:00:14.3]} 6. Ndb5 {[%clk 0:02:29.2]} 6... d6 {[%clk
0:00:14.2]} 7. Bf4 {[%clk 0:02:29.8]} 7... e5 {[%clk 0:00:14.9]} 8. Bg5 {[%clk
0:02:30.5]} 8... a6 {[%clk 0:00:15.6]} 9. Na3 {[%clk 0:02:30.4]} 9... b5 {[%clk
0:00:15.4]} 10. Nd5 {[%clk 0:02:30.6]} 10... Be7 {[%clk 0:00:15.8]} 11. Bxf6
{[%clk 0:02:30.2]} 11... Bxf6 {[%clk 0:00:16.7]} 12. c3 {[%clk 0:02:30.7]} 12...
Bg5 {[%clk 0:00:16.9]} 13. Nc2 {[%clk 0:02:30.3]} 13... Bb7 {[%clk 0:00:17.5]}
14. a4 {[%clk 0:02:25.7]} 14... bxa4 {[%clk 0:00:17.3]} 15. Rxa4 {[%clk
0:02:25.9]} 15... O-O {[%clk 0:00:17.9]} 16. h4 {[%clk 0:02:23]} 16... Bh6
{[%clk 0:00:17.3]} 17. Be2 {[%clk 0:02:22.9]} 17... Nb8 {[%clk 0:00:15.9]} 18.
Nce3 {[%clk 0:02:21]} 18... Nd7 {[%clk 0:00:16]} 19. Nf5 {[%clk 0:02:02.1]}
19... Bxd5 {[%clk 0:00:09.2]} 20. Nxh6+ {[%clk 0:01:59.9]} 20... gxh6 {[%clk
0:00:10.1]} 21. Qxd5 {[%clk 0:02:00]} 21... Nb6 {[%clk 0:00:09.9]} 22. Qb3
{[%clk 0:01:55.3]} 22... Nxa4 {[%clk 0:00:09.6]} 23. Qxa4 {[%clk 0:01:55.6]}
23... Qb6 {[%clk 0:00:10]} 24. Qa3 {[%clk 0:01:37.1]} 24... Rab8 {[%clk
0:00:09.3]} 25. O-O {[%clk 0:01:34.3]} 25... Qxb2 {[%clk 0:00:08.8]} 26. Qxa6
{[%clk 0:01:34.7]} 26... Rb6 {[%clk 0:00:06.1]} 27. Qd3 {[%clk 0:01:34.1]} 27...
Kh8 {[%clk 0:00:05.5]} 28. Qf3 {[%clk 0:01:27]} 28... d5 {[%clk 0:00:05.9]} 29.
exd5 {[%clk 0:01:25.3]} 29... Rg6 {[%clk 0:00:06]} 30. Bd3 {[%clk 0:01:25]}
30... Rd6 {[%clk 0:00:05.2]} 31. Qf5 {[%clk 0:01:23.3]} 31... Rg6 {[%clk
0:00:05.5]} 32. Qxe5+ {[%clk 0:01:23.5]} 32... Rg7 {[%clk 0:00:05.7]} 33. d6
{[%clk 0:01:20.4]} 33... Qb7 {[%clk 0:00:05.7]} 34. g3 {[%clk 0:01:16.4]} 34...
f6 {[%clk 0:00:04.6]} 35. Qe6 {[%clk 0:01:13.8]} 35... Qf3 {[%clk 0:00:04.6]}
36. Be4 {[%clk 0:01:10.3]} 36... Qxc3 {[%clk 0:00:03]} 37. Rd1 {[%clk
0:01:06.5]} 37... Rfg8 {[%clk 0:00:03]} 38. Rd3 {[%clk 0:00:52.4]} 38... Qe1+
{[%clk 0:00:02.3]} 39. Kg2 {[%clk 0:00:53.1]} 39... Rxg3+ {[%clk 0:00:02.9]} 40.
Rxg3 {[%clk 0:00:52.1]} 40... Qxe4+ {[%clk 0:00:01.3]} 41. Qxe4 {[%clk
0:00:51.7]} 41... Rg5 {[%clk 0:00:02.2]} 42. hxg5 {[%clk 0:00:51.6]} 42... Kg7
{[%clk 0:00:02.9]} 43. Qe7+ {[%clk 0:00:51.5]} 43... Kg6 {[%clk 0:00:03.2]} 44.
Qxf6+ {[%clk 0:00:51.5]} 44... Kh5 {[%clk 0:00:04.1]} 45. Qxh6# {[%clk
0:00:51.9]} 1-0

[Event "*** SCC Grand Prix: Titled Tuesday Blitz"]
[Site "Chess.com"]
[Date "2020.07.07"]
[Round "2"]
[White "SGchess01"]
[Black "Hikaru"]
[Result "0-1"]
[WhiteElo "2612"]
[BlackElo "3221"]
[TimeControl "180+1"]
[EndTime "10:18:12 PDT"]
[Termination "Hikaru won by resignation"]

1. Nf3 {[%clk 0:03:00.9]} 1... g6 {[%clk 0:02:58.9]} 2. g3 {[%clk 0:03:01.1]}
2... d5 {[%clk 0:02:58.4]} 3. Bg2 {[%clk 0:03:00.5]} 3... Bg7 {[%clk 0:02:58.7]}
4. O-O {[%clk 0:03:00.3]} 4... e5 {[%clk 0:02:58.2]} 5. d3 {[%clk 0:02:59.1]}
5... Ne7 {[%clk 0:02:58.6]} 6. c4 {[%clk 0:02:59.5]} 6... O-O {[%clk 0:02:55.8]}
7. cxd5 {[%clk 0:02:59.6]} 7... Nxd5 {[%clk 0:02:56.7]} 8. Bg5 {[%clk
0:02:45.9]} 8... f6 {[%clk 0:02:38.4]} 9. Bd2 {[%clk 0:02:45]} 9... Be6 {[%clk
0:02:32]} 10. Nc3 {[%clk 0:02:44.4]} 10... Nc6 {[%clk 0:02:25.6]} 11. a3 {[%clk
0:02:38.9]} 11... Qd7 {[%clk 0:02:17.9]} 12. Rc1 {[%clk 0:02:36.1]} 12... Nxc3
{[%clk 0:02:15.5]} 13. Bxc3 {[%clk 0:02:35.7]} 13... Rad8 {[%clk 0:02:12.7]} 14.
b4 {[%clk 0:02:34.6]} 14... Nd4 {[%clk 0:01:57.9]} 15. Nxd4 {[%clk 0:01:52.7]}
15... exd4 {[%clk 0:01:58.8]} 16. Bd2 {[%clk 0:01:53.3]} 16... c6 {[%clk
0:01:58.6]} 17. Qa4 {[%clk 0:01:48.7]} 17... a6 {[%clk 0:01:58.9]} 18. Qa5
{[%clk 0:01:48.7]} 18... Bh3 {[%clk 0:01:50.6]} 19. Rfe1 {[%clk 0:01:47.5]}
19... Bxg2 {[%clk 0:01:47.2]} 20. Kxg2 {[%clk 0:01:48.4]} 20... Rfe8 {[%clk
0:01:47.5]} 21. Qc5 {[%clk 0:01:46.7]} 21... Re5 {[%clk 0:01:35.9]} 22. Qc4+
{[%clk 0:01:46.3]} 22... Kh8 {[%clk 0:01:36.1]} 23. e4 {[%clk 0:01:10.9]} 23...
dxe3 {[%clk 0:01:34.1]} 24. Bxe3 {[%clk 0:01:06.8]} 24... Qxd3 {[%clk 0:00:53]}
25. Qxd3 {[%clk 0:00:39.3]} 25... Rxd3 {[%clk 0:00:53.9]} 26. Bf4 {[%clk
0:00:39.9]} 26... Rxe1 {[%clk 0:00:53.9]} 27. Rxe1 {[%clk 0:00:40.8]} 27... Bf8
{[%clk 0:00:54.4]} 28. Re8 {[%clk 0:00:38.1]} 28... Kg7 {[%clk 0:00:54.6]} 29.
Rb8 {[%clk 0:00:38.7]} 29... Rd7 {[%clk 0:00:54.2]} 30. g4 {[%clk 0:00:35.7]}
30... Kf7 {[%clk 0:00:31.7]} 31. Kf3 {[%clk 0:00:35.9]} 31... c5 {[%clk
0:00:27.8]} 32. bxc5 {[%clk 0:00:33.5]} 32... Bxc5 {[%clk 0:00:28.7]} 33. a4
{[%clk 0:00:33.9]} 33... Ke6 {[%clk 0:00:29.3]} 34. Ke2 {[%clk 0:00:30.8]} 34...
Kd5 {[%clk 0:00:29.4]} 35. h4 {[%clk 0:00:29.2]} 35... Kc4 {[%clk 0:00:28.6]}
36. Rc8 {[%clk 0:00:27.7]} 36... b6 {[%clk 0:00:25.4]} 37. a5 {[%clk 0:00:27.3]}
37... bxa5 {[%clk 0:00:21]} 38. Be3 {[%clk 0:00:27]} 38... Rd5 {[%clk
0:00:21.6]} 39. Rc7 {[%clk 0:00:27.4]} 39... a4 {[%clk 0:00:21.6]} 0-1

[Event "*** SCC Grand Prix: Titled Tuesday Blitz"]
[Site "Chess.com"]
[Date "2020.07.07"]
[Round "2"]
[White "Larina_Marija"]
[Black "doctorcristian"]
[Result "0-1"]
[WhiteElo "2098"]
[BlackElo "2400"]
[TimeControl "180+1"]
[EndTime "10:18:13 PDT"]
[Termination "doctorcristian won by resignation"]

1. e4 {[%clk 0:03:00]} 1... c6 {[%clk 0:02:53.7]} 2. d4 {[%clk 0:02:58.2]} 2...
d5 {[%clk 0:02:53.2]} 3. Nd2 {[%clk 0:02:58.7]} 3... dxe4 {[%clk 0:02:50.2]} 4.
Nxe4 {[%clk 0:02:59.6]} 4... Nf6 {[%clk 0:02:49.6]} 5. Nxf6+ {[%clk 0:02:59.8]}
5... gxf6 {[%clk 0:02:48.3]} 6. Qd3 {[%clk 0:02:58.8]} 6... Nd7 {[%clk
0:02:44.2]} 7. Nf3 {[%clk 0:02:55.7]} 7... Nb6 {[%clk 0:02:43.6]} 8. c4 {[%clk
0:02:52.6]} 8... Bg4 {[%clk 0:02:40.8]} 9. Be2 {[%clk 0:02:52.4]} 9... e6 {[%clk
0:02:40.7]} 10. h3 {[%clk 0:02:52.1]} 10... Bh5 {[%clk 0:02:39.7]} 11. Bf4
{[%clk 0:02:40.6]} 11... Bb4+ {[%clk 0:02:37.4]} 12. Bd2 {[%clk 0:02:32]} 12...
Bg6 {[%clk 0:02:35.7]} 13. Qe3 {[%clk 0:02:28.4]} 13... Bxd2+ {[%clk 0:02:33.9]}
14. Qxd2 {[%clk 0:02:16.5]} 14... Qc7 {[%clk 0:02:31.4]} 15. Nh4 {[%clk
0:02:10]} 15... O-O-O {[%clk 0:02:30]} 16. Nxg6 {[%clk 0:02:09.6]} 16... hxg6
{[%clk 0:02:27.3]} 17. O-O-O {[%clk 0:02:05]} 17... c5 {[%clk 0:02:26.4]} 18.
Qc3 {[%clk 0:01:56.5]} 18... cxd4 {[%clk 0:02:18.9]} 19. Rxd4 {[%clk 0:01:57.4]}
19... Qe5 {[%clk 0:02:12.9]} 20. Rxd8+ {[%clk 0:01:52]} 20... Rxd8 {[%clk
0:02:12.1]} 21. Qxe5 {[%clk 0:01:52.9]} 21... fxe5 {[%clk 0:02:12]} 22. Rd1
{[%clk 0:01:46.9]} 22... e4 {[%clk 0:02:09.9]} 23. c5 {[%clk 0:01:37.4]} 23...
Nd7 {[%clk 0:02:05.6]} 24. b4 {[%clk 0:01:32.7]} 24... Kc7 {[%clk 0:02:05.4]}
25. Kc2 {[%clk 0:01:28.3]} 25... a5 {[%clk 0:02:03.8]} 26. a3 {[%clk 0:01:27.6]}
26... axb4 {[%clk 0:02:02]} 27. axb4 {[%clk 0:01:28.5]} 27... Ne5 {[%clk
0:01:56.4]} 28. Rxd8 {[%clk 0:01:25.8]} 28... Kxd8 {[%clk 0:01:55.6]} 29. Kc3
{[%clk 0:01:25.7]} 29... f5 {[%clk 0:01:54.2]} 30. Kd4 {[%clk 0:01:25.4]} 30...
Nc6+ {[%clk 0:01:53.2]} 31. Kc4 {[%clk 0:01:25.8]} 31... Ne5+ {[%clk 0:01:52.9]}
32. Kb5 {[%clk 0:01:25.6]} 32... Kc7 {[%clk 0:01:52.2]} 33. Ka4 {[%clk
0:01:15.4]} 33... Nd3 {[%clk 0:01:43.8]} 34. f3 {[%clk 0:01:08.7]} 34... exf3
{[%clk 0:01:39.5]} 35. gxf3 {[%clk 0:00:38]} 35... Nf4 {[%clk 0:01:33.8]} 36.
Bf1 {[%clk 0:00:36.8]} 36... g5 {[%clk 0:01:33.5]} 37. b5 {[%clk 0:00:32.9]}
37... e5 {[%clk 0:01:32.2]} 38. Kb3 {[%clk 0:00:30.9]} 38... e4 {[%clk
0:01:29.4]} 39. fxe4 {[%clk 0:00:30.4]} 39... fxe4 {[%clk 0:01:28.9]} 40. Kc3
{[%clk 0:00:29.1]} 40... e3 {[%clk 0:01:28.5]} 41. Kd4 {[%clk 0:00:19.6]} 41...
e2 {[%clk 0:01:27]} 42. Bxe2 {[%clk 0:00:20.1]} 42... Nxe2+ {[%clk 0:01:26.6]}
43. Ke5 {[%clk 0:00:20.5]} 43... Ng1 {[%clk 0:01:24.3]} 44. Kf5 {[%clk
0:00:15.4]} 44... Nxh3 {[%clk 0:01:23.7]} 45. Kg4 {[%clk 0:00:15.9]} 45... Nf4
{[%clk 0:01:23.5]} 46. Kxg5 {[%clk 0:00:15.8]} 46... Ne6+ {[%clk 0:01:23]} 47.
Kf6 {[%clk 0:00:14.9]} 47... Nxc5 {[%clk 0:01:23.9]} 48. Ke5 {[%clk 0:00:15.2]}
48... Kb6 {[%clk 0:01:24.1]} 49. Kd6 {[%clk 0:00:15.4]} 49... Kxb5 {[%clk
0:01:23.9]} 50. Kc7 {[%clk 0:00:15.6]} 50... b6 {[%clk 0:01:21.5]} 0-1

[Event "*** SCC Grand Prix: Titled Tuesday Blitz"]
[Site "Chess.com"]
[Date "2020.07.07"]
[Round "2"]
[White "WIDBIFS"]
[Black "MomchilPetkov"]
[Result "0-1"]
[WhiteElo "2797"]
[BlackElo "2549"]
[TimeControl "180+1"]
[EndTime "10:18:16 PDT"]
[Termination "MomchilPetkov won by resignation"]

1. d4 {[%clk 0:03:00.9]} 1... Nf6 {[%clk 0:02:57.9]} 2. Nf3 {[%clk 0:03:01.2]}
2... e6 {[%clk 0:02:57.5]} 3. Bf4 {[%clk 0:03:01.7]} 3... d5 {[%clk 0:02:57.2]}
4. e3 {[%clk 0:03:02.1]} 4... Bd6 {[%clk 0:02:57.6]} 5. Bg3 {[%clk 0:03:01.7]}
5... O-O {[%clk 0:02:57.2]} 6. Nbd2 {[%clk 0:03:02.2]} 6... c5 {[%clk
0:02:57.2]} 7. c3 {[%clk 0:03:02.6]} 7... Nc6 {[%clk 0:02:56.7]} 8. Bd3 {[%clk
0:03:02.7]} 8... b6 {[%clk 0:02:53.1]} 9. Qe2 {[%clk 0:03:03.1]} 9... Bb7 {[%clk
0:02:49.3]} 10. Rd1 {[%clk 0:03:03.4]} 10... a5 {[%clk 0:02:25.1]} 11. a4 {[%clk
0:03:00.4]} 11... Ra7 {[%clk 0:02:13.9]} 12. e4 {[%clk 0:02:58]} 12... Be7
{[%clk 0:02:13.9]} 13. e5 {[%clk 0:02:57.2]} 13... Nh5 {[%clk 0:02:14.1]} 14. h4
{[%clk 0:02:54.8]} 14... Nxg3 {[%clk 0:02:06.1]} 15. fxg3 {[%clk 0:02:53.6]}
15... h6 {[%clk 0:01:52.2]} 16. g4 {[%clk 0:02:03.5]} 16... cxd4 {[%clk
0:01:49.9]} 17. g5 {[%clk 0:02:03.9]} 17... dxc3 {[%clk 0:01:41.3]} 18. bxc3
{[%clk 0:02:04.8]} 18... Bc5 {[%clk 0:01:15.6]} 19. gxh6 {[%clk 0:01:55]} 19...
gxh6 {[%clk 0:01:06.6]} 20. Ng5 {[%clk 0:01:36.8]} 20... Bc8 {[%clk 0:00:53.7]}
21. Ndf3 {[%clk 0:00:40.4]} 21... f6 {[%clk 0:00:48.1]} 22. exf6 {[%clk
0:00:33.3]} 22... Qxf6 {[%clk 0:00:46.3]} 23. Bb5 {[%clk 0:00:23.8]} 23... Qxc3+
{[%clk 0:00:38.9]} 24. Kf1 {[%clk 0:00:09.2]} 24... Nd4 {[%clk 0:00:35.1]} 25.
Rxd4 {[%clk 0:00:07.5]} 25... Qxd4 {[%clk 0:00:31.1]} 26. Qc2 {[%clk 0:00:04.1]}
26... hxg5 {[%clk 0:00:16.4]} 27. hxg5 {[%clk 0:00:05]} 27... Qa1+ {[%clk
0:00:16.1]} 28. Ke2 {[%clk 0:00:04.8]} 28... Qxh1 {[%clk 0:00:15.8]} 29. Kd3
{[%clk 0:00:01.6]} 29... Qh7+ {[%clk 0:00:14.2]} 30. Kd2 {[%clk 0:00:01.4]} 0-1